Cogmind - Beta 15 @@@ ROGUE MODE // 2025.09.04 @ 11:49:50 Player: k1ll3rb0t Result: Destroyed by Y-54 Guardian with Flak Gun Performance ------------- Evolutions (4) 2000 Regions Visited (9) 1800 Robots Destroyed (233) 1165 Value Destroyed (7695) 7695 Prototype IDs (12) 240 Alien Tech Used (0) 0 Bonus (1537) 1537 TOTAL SCORE: 14437 Bonus ------- High Alert Combat Kills 1136 Follower Combat Kills 201 Entered Garrisons 200 Cogmind --------- Core Integrity 0/850 Matter 185/300 Energy 150/150 System Corruption 71% Temperature Cool (-11) Movement Rolling (130) Ox2 Location -6/Factory Parts ------- > --- POWER (1) -------- Light Angular Momentum Engine > --- PROPULSION (4) --- Armored Huge Wheel Armored Huge Wheel > --- UTILITY (7) ------ Cryofiber Web Huge Storage Unit Enhanced Optical Array Improved Sensor Array Improved Signal Interpreter Core Analyzer Improved Medium Armor Plating > --- WEAPON (3) ------- Plasma Rifle Magnetic Acceleration Cannon Compact Mass Driver > --- INVENTORY (25) --- Medium Treads Medium Treads Medium Treads Carbon-fiber Leg Carbon-fiber Leg Carbon-fiber Leg Carbon-fiber Leg Carbon-fiber Leg Carbon-fiber Leg Flexi-carbon Leg Flexi-carbon Leg Flexi-carbon Leg Compact Wheel Improved VTOL Module Cooled Cesium-ion Thruster Advanced Heat Sink Advanced Heat Sink Matter Compressor (4) Improved System Shield Heavy Assault Cannon Heavy Missile Launcher Heavy Flail Katana Peak State ------------ > --- POWER ------------ Light Angular Momentum Engine > --- PROPULSION ------- Carbon-fiber Leg Flexi-carbon Leg Flexi-carbon Leg Flexi-carbon Leg > --- UTILITY ---------- Cryofiber Web Advanced Heat Sink Huge Storage Unit Machine Analyzer Enhanced Optical Array Core Analyzer Improved System Shield > --- WEAPON ----------- Heavy Laser Heavy Ion Cannon Compact Mass Driver > --- INVENTORY -------- Light Angular Momentum Engine Light Angular Momentum Engine Medium Treads Medium Treads Medium Treads Carbon-fiber Leg Carbon-fiber Leg Carbon-fiber Leg Carbon-fiber Leg Flexi-carbon Leg Flexi-carbon Leg Armored Huge Wheel Armored Huge Wheel Armored Huge Wheel Improved VTOL Module Cooled Cesium-ion Thruster Advanced Heat Sink Advanced Heat Sink Matter Compressor Improved Sensor Array Improved System Shield Heavy Flail [Rating: 76] Favorites ----------- Power Heavy Ion Engine Engine Heavy Ion Engine Power Core Micro Nuclear Core Reactor Light Antimatter Reactor Propulsion Light Treads Treads Light Treads Leg Flexi-carbon Leg Wheel Wheel Hover Unit Improved Hover Unit Flight Unit Cooled Cesium-ion Thruster Utility Huge Storage Unit Device Cryofiber Web Storage Huge Storage Unit Processor Improved Signal Interpreter Hackware Improved System Shield Protection Layered Light Armor Plating Weapon Advanced Assault Cannon Energy Gun Thermic Laser Energy Cannon Plasma Cannon Ballistic Gun Improved Assault Rifle Ballistic Cannon Advanced Assault Cannon Launcher Grenade Launcher Special Weapon Plasma Cutter Impact Weapon Flail Slashing Weapon Chainsword Build | -11 -10 -9 -9 -9 -8 -7 -6 -6 -6 ------- Run | Yrd Mat Mat Sto Gar Mat Fac Fac Was Fac Slots Evolved 8 | . . 2 . . 2 2 2 . . Power . | . . . . . . . . . . Propulsion 2 | . . . . . 2 . . . . Utility 5 | . . 1 . . . 2 2 . . Weapon 1 | . . 1 . . . . . . . Parts Attached 209 | 8 14 19 21 4 19 37 32 7 48 Power 23 | 1 2 2 2 1 . 4 5 . 6 Engine 19 | 1 2 2 2 1 . 3 2 . 6 Core 3 | . . . . . . 1 2 . . Reactor 1 | . . . . . . . 1 . . Propulsion 71 | 2 6 7 9 2 6 12 8 3 16 Treads 40 | 2 . 7 9 2 6 12 . . 2 Leg 8 | . . . . . . . . 2 6 Wheel 18 | . 2 . . . . . 8 1 7 Hover 4 | . 4 . . . . . . . . Flight 1 | . . . . . . . . . 1 Utility 65 | 2 4 3 5 . 5 16 12 4 14 Device 33 | 1 2 . 3 . 2 8 9 2 6 Storage 5 | 1 1 . 1 . 1 . . . 1 Processor 8 | . . . . . . 1 2 . 5 Hackware 5 | . . . . . . 3 . 1 1 Protection 14 | . 1 3 1 . 2 4 1 1 1 Artifact . | . . . . . . . . . . Weapon 50 | 3 2 7 5 1 8 5 7 . 12 Energy Gun 6 | . . 1 . . . . . . 5 Energy Cannon 6 | . . . . . 1 1 2 . 2 Ballistic Gun 19 | 3 2 5 2 . 2 . 4 . 1 Ballistic Cannon 12 | . . . 3 . 4 2 1 . 2 Launcher 1 | . . . . 1 . . . . . Special Weapon 1 | . . . . . . 1 . . . Impact Weapon 2 | . . . . . . . . . 2 Slashing Weapon 3 | . . 1 . . 1 1 . . . Piercing Weapon . | . . . . . . . . . . Special Melee Weapon . | . . . . . . . . . . Unidentified Prototypes 10 | . . 3 . . 1 1 2 . 3 Corrupted Parts 4 | . . . . . 1 . . . 3 System Corruption 30 | . . . . . 1 . . . 29 Parts Lost 72 | . 4 2 1 . 6 17 16 9 17 Power 12 | . 1 1 . . . 3 3 . 4 Propulsion 27 | . 2 . . . 1 7 7 5 5 Utility 16 | . 1 1 1 . 1 3 4 4 1 Weapon 17 | . . . . . 4 4 2 . 7 Highest Loss Streak 9 | . 3 1 1 . 2 5 9 5 6 To Critical Strikes . | . . . . . . . . . . Average Backups 19 | 3 12 14 14 15 20 24 23 22 14 Power . | . 1 1 1 1 1 . 1 1 . Propulsion 4 | 2 5 4 4 4 6 4 1 2 7 Utility 7 | . 1 4 3 4 6 10 12 13 4 Weapon 5 | . 3 4 6 6 6 7 6 5 2 Tool/Special . | . . . . . . . . . . Unused Backups 51 | . 5 3 3 . 5 7 6 8 14 Power 3 | . . . . . 1 2 . . . Propulsion 17 | . 4 2 1 . 1 1 . . 8 Utility 21 | . 1 1 2 . 1 3 5 5 3 Weapon 9 | . . . . . 2 1 1 2 3 Tool/Special 1 | . . . . . . . . 1 . Average Slot Usage (%) 95 | . 98 98 99 100 99 98 96 71 81 Engine 7 | . 14 10 11 11 9 5 3 . 5 Treads 20 | . 1 19 22 22 35 29 10 . 3 Wheel 3 | . 6 2 . . . . 13 19 8 Hover 1 | . 20 . . . . . . . . Device 12 | . 12 11 9 10 7 14 15 11 14 Storage 7 | . 14 11 11 11 9 7 6 5 4 Processor 6 | . . . . . . 7 13 9 14 Hackware 1 | . . . . . . . 4 5 6 Protection 6 | . . 10 12 11 10 6 4 1 . Energy Cannon 1 | . . . . . 1 . 4 2 5 Ballistic Gun 7 | . 28 32 29 9 2 . 5 . . Ballistic Cannon 11 | . . . 3 22 22 17 6 2 2 Slashing Weapon 1 | . . . . . . 2 2 3 . Peak Build Rating 76 | 7 10 17 20 19 32 50 57 60 76 Average Rating 36 | 5 9 14 18 18 26 42 52 41 54 On Entrance 21 | . 7 8 15 19 19 32 47 55 14 Naked Turns . | . . . . . . . . . . Heaviest Build 121 | 13 30 42 51 51 111 118 121 116 118 Greatest Support 87 | 40 40 40 40 40 80 87 82 46 75 Greatest Overweight (x) 11 | 1 1 2 1 1 1 1 10 8 11 Average Overweight (x) 1 | . . . 1 1 . 1 3 1 1 Largest Inventory Capacity 25 | 8 15 15 15 15 25 25 25 25 25 Average Capacity 21 | 6 14 15 15 15 22 25 25 23 20 Most Carried 25 | 7 15 15 15 15 25 25 25 25 25 Average Carried 19 | 4 12 14 14 14 20 24 23 22 14 Final Capacity 25 | 8 15 15 15 15 25 25 25 5 25 Final Carried 25 | 7 15 15 15 15 25 24 25 5 24 Class Distribution -------------------- 29% | Mutant 22% | Tank 13% | Scavenger-Tank 11% | Scavenger-Skirmisher 11% | Skirmisher 6% | Scavenger-Mutant Dominant Class ---------------- Mutant | -10/Materials Tank | -9/Materials Tank | -9/Storage Tank | -9/Garrison Scavenger-Tank | -8/Materials Mutant | -7/Factory Scavenger-Tank | -6/Factory Scavenger-Mutant | -6/Waste Mutant | -6/Factory Resources | -11 -10 -9 -9 -9 -8 -7 -6 -6 -6 ----------- Run | Yrd Mat Mat Sto Gar Mat Fac Fac Was Fac Matter Collected 8193 | 186 353 605 777 492 1520 1586 973 . 1701 Remotely . | . . . . . . . . . . Salvage Created 8095 | 12 370 913 1423 497 1305 1300 923 . 1352 Parts 434 | 4 24 54 93 30 71 68 42 . 48 Haulers Intercepted 12 | . 1 3 4 . 2 1 . . 1 Recyclers Shooed 16 | . 1 2 3 . 2 2 6 . . Parts Field Recycled . | . . . . . . . . . . Retrieved Matter . | . . . . . . . . . . Parts Self-Destructed . | . . . . . . . . . . Prevented . | . . . . . . . . . . Kills | -11 -10 -9 -9 -9 -8 -7 -6 -6 -6 ------- Run | Yrd Mat Mat Sto Gar Mat Fac Fac Was Fac Combat Hostiles Destroyed 173 | . 11 16 24 17 36 32 16 . 21 Melee 7 | . . . . . . 5 . . 2 Guns 72 | . 11 16 23 5 2 . 10 . 5 Cannons 80 | . . . 1 11 23 27 6 . 12 AOE 12 | . . . . 1 11 . . . . Classes Destroyed 17 | 2 3 3 . . 7 2 . . . Worker 17 | 1 1 . 1 . 2 4 5 . 3 Builder 8 | . . . . . 3 2 1 . 2 Tunneler 3 | 1 . . . . . . 1 . 1 Hauler 12 | . 1 3 4 . 2 1 . . 1 Recycler 11 | . . 3 2 . . 3 1 . 2 Mechanic 4 | . . . . . 2 1 . . 1 Operator 2 | . . . . . . 2 . . . Watcher 3 | . . 1 . . 1 . . . 1 Swarmer 32 | . 6 8 3 3 . 1 6 . 5 Grunt 81 | . 5 4 12 9 23 14 6 . 8 Brawler 6 | . . . . . 4 1 . . 1 Duelist 4 | . . . . . 1 2 . . 1 Protector 2 | . . . . . 2 . . . . Sentry 30 | . . 4 9 5 4 4 2 . 2 Hunter 4 | . . . . . 1 3 . . . Programmer 13 | . . . . . . 7 2 . 4 Heavy 1 | . . . . . 1 . . . . Best Kill Streak 9 | 1 6 6 8 5 9 6 4 . 5 Combat Bots Only 6 | . 6 4 4 5 6 4 3 . 5 Max Kills in Single Turn 6 | 1 2 2 2 3 6 3 2 . 1 Gunslinging 1 | . . 1 1 . . . . . . Exploded 3 | . . . . 1 3 . . . . Melee 1 | . . . . . . 1 . . 1 Uniques/NPCs Destroyed . | . . . . . . . . . . Combat | -11 -10 -9 -9 -9 -8 -7 -6 -6 -6 -------- Run | Yrd Mat Mat Sto Gar Mat Fac Fac Was Fac Hostile Shots Fired 1328 | . 52 74 70 46 115 401 206 4 360 Missed 412 | . 10 21 19 12 35 135 56 . 124 Hits 916 | . 42 53 51 34 80 266 150 4 236 Melee 15 | . . . . . 2 8 . 4 1 Projectile 901 | . 42 53 51 34 78 258 150 . 235 AOE 1 | . . . . . . 1 . . . Critical Strikes 37 | . . 3 1 1 10 7 4 2 9 Part Disruptions 1 | . . . . . . . . . 1 Damage Taken 13459 | . 419 578 695 407 1504 4087 2050 192 3527 Core 1587 | . 100 44 68 22 177 324 188 9 655 Absorbed by Shields 22 | . . . . 22 . . . . . Regen/Repaired (Parts) 471 | . . . 112 . . 359 . . . Core Remaining (%) 69 | 100 60 . . 66 67 53 . . . Volleys Fired 541 | 3 43 39 57 39 90 100 80 3 87 Largest 3 | 2 2 3 3 3 3 3 3 1 3 Hottest 230 | 40 40 69 89 96 133 160 169 85 230 Shots Fired 1248 | 6 77 113 149 90 246 206 159 3 199 Gun 546 | 6 77 113 136 24 41 . 97 . 52 Cannon 690 | . . . 13 65 194 206 62 3 147 Launcher 12 | . . . . 1 11 . . . . Special . | . . . . . . . . . . Kinetic 1034 | 6 77 113 149 89 228 194 115 . 63 Thermal 195 | . . . . . . 12 44 3 136 Explosive 12 | . . . . 1 11 . . . . Electromagnetic 7 | . . . . . 7 . . . . Robot Hit Streak 21 | 5 10 15 21 11 11 12 14 . 8 Robot Miss Streak 9 | . 3 3 2 3 8 7 4 . 9 Penetration Max 1 | . . . . . . . . . 1 Secondary Targets 16 | . 3 4 5 . . . 4 . . Max Gunslinging Chain 1 | . 1 1 1 . . . 1 . . Shots Hit Robots 760 | 5 51 71 109 48 134 149 95 . 98 Core Hits 434 | 2 25 33 48 22 116 96 49 . 43 Critical Kills 5 | . . 1 . . . . 1 . 3 Critical Parts Destroyed 6 | . 1 . . . . . 3 . 2 Critical Strikes 37 | . 1 1 . 3 7 7 6 . 12 Burn 3 | . . . . . . . . . 3 Meltdown 1 | . . . . . . . . . 1 Destroy 6 | . 1 1 . . . . 4 . . Blast 19 | . . . . 3 7 4 1 . 4 Smash 4 | . . . . . . . . . 4 Sever 4 | . . . . . . 3 1 . . Melee Attacks 163 | . . 3 . . 13 69 21 . 57 Impact 57 | . . . . . . . . . 57 Slashing 106 | . . 3 . . 13 69 21 . . Piercing . | . . . . . . . . . . Sneak Attacks 22 | . . . . . . 7 5 . 10 Combat Hostiles . | . . . . . . . . . . Follow-up Attacks . | . . . . . . . . . . Damage Inflicted 19508 | 41 421 1034 1726 990 4253 4990 2424 . 3629 Guns 5659 | 41 421 1030 1681 301 383 . 1309 . 493 Cannons 8990 | . . . 41 669 2608 3230 564 . 1878 Explosions 1579 | . . . . 20 1232 327 . . . Melee 3159 | . . . . . . 1359 551 . 1249 Ramming 121 | . . 4 4 . 30 74 . . 9 Kinetic 12660 | 41 421 1030 1722 970 2899 3069 1499 . 1009 Thermal 1897 | . . . . . . 161 374 . 1362 Explosive 1579 | . . . . 20 1232 327 . . . Electromagnetic 92 | . . . . . 92 . . . . Impact 1249 | . . . . . . . . . 1249 Slashing 1910 | . . . . . . 1359 551 . . Piercing . | . . . . . . . . . . Highest Corruption 71 | . . . 3 3 1 7 6 32 71 Average Corruption 15 | . . . 1 3 1 3 3 21 53 Corruption Purged 2 | . . . . . . . . . 2 Corruption Blocked . | . . . . . . . . . . Effects 316 | . . . 14 17 . 74 17 19 175 Message Errors 69 | . . . 5 3 . 20 7 5 29 Matter Fused 64 | . . . 5 6 . 12 6 4 31 Heat Flow Errors 36 | . . . . 1 . 15 3 . 17 Energy Discharges 22 | . . . 2 1 . 6 . . 13 Parts Rejected 11 | . . . . 2 . 3 . 2 4 Parts Fused 1 | . . . . . . . . . 1 Data Loss (minor) 41 | . . . 1 3 . 13 . 1 23 Data Loss (major) 11 | . . . . . . 3 . . 8 Misfires 7 | . . . . . . . . . 7 Alerts 6 | . . . 1 . . 2 1 . 2 Misdirections 22 | . . . . . . . . 7 15 Weapon Failures 26 | . . . . 1 . . . . 25 Overload Shots . | . . . . . . . . . . Overflow Damage 681 | . . . . 20 66 162 34 . 399 Projectiles 89 | . . . . 20 31 1 14 . 23 Explosions 87 | . . . . . 35 52 . . . Melee 505 | . . . . . . 109 20 . 376 Knockbacks 96 | . . . . 1 33 50 4 . 8 Impact 5 | . . . . . . . . . 5 Kinetic 83 | . . . . 1 29 46 4 . 3 Secondary 8 | . . . . . 4 4 . . . Self-Inflicted Damage 87 | . . . . . . 87 . . . Shots 1 | . . . . . . 1 . . . Rammed 13 | . . 1 2 . 5 4 . . 1 Targets Rammed 21 | 1 . 1 2 . 6 7 . . 4 Kicked 3 | . . . . . . . . . 3 Crushed 5 | 1 . . . . 1 3 . . . Highest Temperature 455 | . 43 84 81 211 295 455 104 . 187 Average Temperature 70 | . 11 20 26 98 104 113 26 . 52 Received Heat Transfer 3903 | . 129 174 282 162 801 1200 456 . 699 Effects 6 | . . . . . . 6 . . . Energy Bleed 1 | . . . . . . 1 . . . Interference 3 | . . . . . . 3 . . . Damage (major) 2 | . . . . . . 2 . . . Siege Activations . | . . . . . . . . . . Martial Activations . | . . . . . . . . . . Shielding Activations . | . . . . . . . . . . Robots Disrupted . | . . . . . . . . . . Combat Hostiles . | . . . . . . . . . . Robots Corrupted 4 | . . . . . . . . . 4 Combat Hostiles 1 | . . . . . . . . . 1 Parts Fried 8 | . . . . . . . . . 8 Impact Corruptions 11 | . . . . . . . . . 11 Robots Melted 1 | . . . . . . . . . 1 Combat Hostiles 1 | . . . . . . . . . 1 Parts Melted 9 | . . . . . . . 1 . 8 Heat Transferred 3530 | . . . . . . 300 444 . 2786 Parts Sabotaged . | . . . . . . . . . . Parts Stolen . | . . . . . . . . . . Parts Stripped . | . . . . . . . . . . Power Chain Reactions . | . . . . . . . . . . Alert | -11 -10 -9 -9 -9 -8 -7 -6 -6 -6 ------- Run | Yrd Mat Mat Sto Gar Mat Fac Fac Was Fac Maximum Alert Level 4 | . . 1 1 2 4 3 1 . 1 Low Security (%) 40 | 100 100 74 81 . . 21 . 100 77 Level 1 30 | . . 25 18 39 6 33 100 . 22 Level 2 15 | . . . . 60 9 33 . . . Level 3 9 | . . . . . 49 11 . . . Level 4 4 | . . . . . 34 . . . . Level 5 . | . . . . . . . . . . High Security . | . . . . . . . . . . Max Security . | . . . . . . . . . . Peak Influence 1244 | 5 149 256 334 662 1244 806 389 91 360 Initial 540 | . 3 11 102 211 322 540 389 91 . Average 333 | . 53 108 147 468 960 388 290 27 93 Influence Increases 6155 | 10 307 504 744 451 1546 1196 543 2 852 Destroy 0b10 Robot/C 3600 | . 220 320 480 340 860 640 320 . 420 Destroy 0b10 Robot/NC 315 | 10 10 35 35 . 65 65 40 . 55 Destroy Leader 842 | . 42 88 138 10 188 202 60 . 114 Allied During Kill 121 | . . . . . 121 . . . . Successful Hack 162 | . 5 12 26 21 24 16 28 . 30 Disable Machine 375 | . . 15 30 15 90 120 15 . 90 Destroy Structure 305 | . . 4 5 20 93 78 35 2 68 Lose Combat Pursuer 435 | . 30 30 30 45 105 75 45 . 75 Influence Decreases 5797 | 5 284 290 660 115 1019 1589 1079 262 494 Entered New Map 1839 | . 2 17 140 115 340 649 407 169 . Time Decay 3263 | 5 242 253 510 . 559 770 502 53 369 Lost Part 625 | . 40 20 10 . 60 170 160 40 125 Lost Ally 70 | . . . . . 60 . 10 . . Squads Dispatched 43 | . 1 1 1 . 9 22 3 . 6 Investigation 7 | . . . . . 3 3 . . 1 Extermination 14 | . . . . . . 9 2 . 3 Reinforcement 11 | . 1 1 1 . 1 5 . . 2 Assault 6 | . . . . . 5 1 . . . Garrison 5 | . . . . . . 4 1 . . Intercept . | . . . . . . . . . . Searches Triggered . | . . . . . . . . . . Construction Impeded 3 | . . . . . . 2 . . 1 Haulers Reinforced . | . . . . . . . . . . Active Scanning Responses . | . . . . . . . . . . Cargo Convoy Interrupts 1 | . . . . . . . . . 1 Stealth | -11 -10 -9 -9 -9 -8 -7 -6 -6 -6 --------- Run | Yrd Mat Mat Sto Gar Mat Fac Fac Was Fac Distress Signals 23 | . 1 2 5 . 8 1 3 . 3 Communications Jammed . | . . . . . . . . . . Distress Signals . | . . . . . . . . . . Times Spotted 276 | . 22 22 30 17 64 55 25 6 35 Peak Tracking Total 7 | . 4 5 5 4 5 7 5 6 6 Tactical Retreats 24 | . 1 2 2 1 7 3 3 . 5 Traps | -11 -10 -9 -9 -9 -8 -7 -6 -6 -6 ------- Run | Yrd Mat Mat Sto Gar Mat Fac Fac Was Fac Traps Triggered 17 | . . . 4 3 1 4 2 . 3 Indirectly . | . . . . . . . . . . Trap Hack Attempts . | . . . . . . . . . . Triggered . | . . . . . . . . . . Disarmed . | . . . . . . . . . . Reprogrammed . | . . . . . . . . . . Reused . | . . . . . . . . . . Traps Extracted . | . . . . . . . . . . Installed . | . . . . . . . . . . Triggered . | . . . . . . . . . . Machines | -11 -10 -9 -9 -9 -8 -7 -6 -6 -6 ---------- Run | Yrd Mat Mat Sto Gar Mat Fac Fac Was Fac Machines Disabled 25 | . . 1 2 1 6 8 1 . 6 Max in Single Turn 2 | . . 1 1 1 2 1 1 . 1 Machines Repaired . | . . . . . . . . . . Machines Dismantled 1 | . . . . . . 1 . . . Machines Sabotaged . | . . . . . . . . . . Overloaded Fab Kills . | . . . . . . . . . . Hacking | -11 -10 -9 -9 -9 -8 -7 -6 -6 -6 --------- Run | Yrd Mat Mat Sto Gar Mat Fac Fac Was Fac Machines Accessed 52 | . 7 2 8 2 4 17 5 . 7 Terminals 36 | . 6 2 6 2 3 10 3 . 4 Fabricators 5 | . . . . . . 3 1 . 1 Repair Stations 5 | . . . 1 . . 3 . . 1 Recycling Units 4 | . 1 . . . 1 1 . . 1 Scanalyzers 1 | . . . . . . . 1 . . Garrison Access 1 | . . . 1 . . . . . . Total Hacks 111 | . 17 6 19 2 9 30 9 . 19 Successful 44 | . 6 3 12 2 2 12 4 . 3 Failed 67 | . 11 3 7 . 7 18 5 . 16 Catastrophic 21 | . 3 . 2 . 1 9 . . 6 Database Lockouts . | . . . . . . . . . . Manual 31 | . 10 1 7 . 8 5 . . . Terminals 74 | . 15 6 16 2 7 13 5 . 10 Fabricators 14 | . . . . . . 7 1 . 6 Repair Stations 13 | . . . 2 . . 9 . . 2 Recycling Units 6 | . 2 . . . 2 1 . . 1 Scanalyzers 3 | . . . . . . . 3 . . Garrison Access 1 | . . . 1 . . . . . . Terminal Hacks 25 | . 6 3 9 2 2 1 1 . 1 Part Schematic 3 | . 1 . 1 . 1 . . . . Prototype ID Bank 1 | . . . 1 . . . . . . Open Door 3 | . . . 2 1 . . . . . Branch Access Points 2 | . . 1 . . . . 1 . . Emergency Access Points 1 | . . . 1 . . . . . . Terminal Index 1 | . . . . . . . . . 1 Alert Level 2 | . . . 1 . . 1 . . . Locate Traps 5 | . 3 2 . . . . . . . Patrol Status 1 | . . . 1 . . . . . . Hauler Manifests 1 | . 1 . . . . . . . . Registered Components 2 | . 1 . . . 1 . . . . Zone Layout 2 | . . . 2 . . . . . . Garrison Registry 1 | . . . . 1 . . . . . Fabricator Hacks 8 | . . . . . . 6 1 . 1 Network Status 3 | . . . . . . 1 1 . 1 Load Schematic 3 | . . . . . . 3 . . . Build 2 | . . . . . . 2 . . . Repair Station Hacks 8 | . . . 2 . . 5 . . 1 Scan Component 5 | . . . 1 . . 3 . . 1 Repair 3 | . . . 1 . . 2 . . . Recycling Unit Hacks . | . . . . . . . . . . Scanalyzer 2 | . . . . . . . 2 . . Insert Component 1 | . . . . . . . 1 . . Analyze 1 | . . . . . . . 1 . . Garrison Access Hacks 1 | . . . 1 . . . . . . Unlock Access 1 | . . . 1 . . . . . . Unauthorized Hacks . | . . . . . . . . . . Terminals . | . . . . . . . . . . Fabricators . | . . . . . . . . . . Repair Stations . | . . . . . . . . . . Recycling Units . | . . . . . . . . . . Scanalyzers . | . . . . . . . . . . Garrison Access . | . . . . . . . . . . Data Cores Recovered . | . . . . . . . . . . Used . | . . . . . . . . . . Hacking Detections 43 | . 6 2 4 1 3 16 4 . 7 Full Trace Events 5 | . . . . . 2 3 . . . Feedback Events 1 | . . . . . . 1 . . . Corruption 1 | . . . . . . 1 . . . Feedback Blocked . | . . . . . . . . . . Robot Schematics Acquired . | . . . . . . . . . . Robots Built . | . . . . . . . . . . Authchips . | . . . . . . . . . . Time . | . . . . . . . . . . Total Robot Build Rating . | . . . . . . . . . . Part Schematics Acquired 4 | . 1 . 1 . 1 . 1 . . Parts Built 4 | . . . . . . 4 . . . Authchips . | . . . . . . . . . . Time 146 | . . . . . . 146 . . . Total Part Build Rating 12 | . . . . . . 12 . . . Parts Repaired 3 | . . . 1 . . 2 . . . Time 114 | . . . 32 . . 82 . . . Parts Recycled . | . . . . . . . . . . Recycled Matter . | . . . . . . . . . . Retrieved Matter . | . . . . . . . . . . Retrieved Components . | . . . . . . . . . . Parts Scanalyzed 1 | . . . . . . . 1 . . Part Schematics Acquired 1 | . . . . . . . 1 . . Parts Damaged . | . . . . . . . . . . Bothacking | -11 -10 -9 -9 -9 -8 -7 -6 -6 -6 ------------ Run | Yrd Mat Mat Sto Gar Mat Fac Fac Was Fac Used RIF Installer . | . . . . . . . . . . Robots Hacked . | . . . . . . . . . . Non-combat . | . . . . . . . . . . Combat . | . . . . . . . . . . Robot Hacks Applied . | . . . . . . . . . . Relay Couplers Released . | . . . . . . . . . . Fabnet Peak Effective % . | . . . . . . . . . . Robots Rewired 3 | . . . . 3 . . . . . Allies Hacked . | . . . . . . . . . . Hacks Repelled . | . . . . . . . . . . Allies | -11 -10 -9 -9 -9 -8 -7 -6 -6 -6 -------- Run | Yrd Mat Mat Sto Gar Mat Fac Fac Was Fac Total Allies 3 | . . . . 3 . . . . . Largest Group 3 | . . . . 3 3 . . . . Highest-Rated Group 93 | . . . . 93 93 . . . . Highest-Rated Ally 31 | . . . . 31 31 . . . . Initial Warlord ECA Mod 1 | . . . . . 1 . . . . Total Orders 1 | . . . . . . . 1 . . EXPLORE 1 | . . . . . . . 1 . . Ally Attacks 87 | . . . . . 87 . . . . Total Damage 1178 | . . . . . 1178 . . . . Kills 10 | . . . . . 10 . . . . Allies Corrupted . | . . . . . . . . . . Allies Melted . | . . . . . . . . . . Intel | -11 -10 -9 -9 -9 -8 -7 -6 -6 -6 ------- Run | Yrd Mat Mat Sto Gar Mat Fac Fac Was Fac Active Infowar (turns) 8849 | 27 604 676 161 . . 3413 1347 265 2356 Optics 2028 | . . . . . . . . . 2028 Sensors 5352 | . . . . . . 3413 381 89 1469 Structural 972 | . 135 676 161 . . . . . . Seismic 538 | 27 469 . . . . . . 42 . Machine Analysis 3898 | . . . . . . . 1347 265 2286 Cloaking 210 | . . . . . . . . 210 . Robot Analysis Total . | . . . . . . . . . . Derelict Logs Recovered . | . . . . . . . . . . Drone Launches 1 | . . . . . . . 1 . . Drone Recoveries . | . . . . . . . . . . Exploration | -11 -10 -9 -9 -9 -8 -7 -6 -6 -6 ------------- Run | Yrd Mat Mat Sto Gar Mat Fac Fac Was Fac Turns Passed 14021 | 105 866 676 1380 788 1646 4592 1347 265 2356 Spaces Moved 5706 | 50 635 262 444 267 557 1530 606 198 1157 Core 197 | 3 . . . . . . . 22 172 Treads 3260 | 47 16 220 444 267 557 1530 123 . 56 Legs 272 | . . . . . . . . 10 262 Wheels 1521 | . 163 42 . . . . 483 166 667 Hover 456 | . 456 . . . . . . . . Flight . | . . . . . . . . . . Fastest Speed 50 | 50 56 100 240 240 160 233 115 50 50 Average Speed 186 | 155 107 170 240 240 217 239 159 110 146 Slowest Speed 320 | 160 160 240 240 240 240 242 241 200 320 Overloaded Moves . | . . . . . . . . . . Propulsion Burnouts . | . . . . . . . . . . Robots Hopped . | . . . . . . . . . . Potential Cave-ins . | . . . . . . . . . . Cave-ins Triggered . | . . . . . . . . . . Exploration Rate (%) 44 | 4 87 26 67 49 45 42 14 83 32 Regions Visited 9 Branch Regions 1 Pre-discovered Areas . | . . . . . . . . . . Known Exits Taken 3 | . . 1 1 . . 1 . . . Unknown Exits Taken 3 | 1 1 . . . 1 . . . . Scrap Searched . | . . . . . . . . . . Spaces Dug 105 | . . 2 . . 9 36 25 3 30 Terrain Destroyed 300 | . . 2 1 . 108 71 44 3 71 Melee 60 | . . 2 . . 5 26 7 . 20 Projectile 132 | . . . 1 . 14 26 37 3 51 AOE 108 | . . . . . 89 19 . . . Terrain Rammed . | . . . . . . . . . . Walls Destroyed . | . . . . . . . . . . Machines Disabled . | . . . . . . . . . . Actions | -11 -10 -9 -9 -9 -8 -7 -6 -6 -6 --------- Run | Yrd Mat Mat Sto Gar Mat Fac Fac Was Fac Total 7735 | 69 759 403 646 341 767 2138 825 240 1547 Wait 604 | . 32 49 82 2 19 285 15 28 92 Move 5700 | 50 634 261 444 266 556 1529 606 197 1157 Hop . | . . . . . . . . . . Pick Up 178 | 7 20 9 6 1 27 36 28 . 44 Fast Attach 60 | 7 3 3 2 2 3 13 6 1 20 Attach 88 | 1 6 3 1 1 10 18 15 6 27 Detach 16 | 1 2 . . . 1 . . 1 11 Swap 178 | . 5 18 25 7 25 34 36 3 25 Drop 137 | . 14 17 23 3 17 30 18 1 14 Fire 541 | 3 43 39 57 39 90 100 80 3 87 Melee 163 | . . 3 . . 13 69 21 . 57 Ram 2 | . . . . . . . . . 2 Kick 3 | . . . . . . . . . 3 Crush 16 | . . 1 2 . 6 7 . . . Escape Stasis 17 | . . . 4 5 . . . . 8 Rewire 15 | . . . . 15 . . . . . Trap . | . . . . . . . . . . Miscellaneous 17 | . . . . . . 17 . . . Route ------- -11/Scrapyard -10/Materials (discovered 4 exits: *Mat x3 / [*Min]) -9/Materials (discovered 2 exits: *Min / *Sto) -9/Storage (discovered 2 exits: [*Rec] / Gar) -9/Garrison (discovered 3 exits: *Mat x3) -8/Materials -7/Factory -6/Factory (discovered 2 exits: Low x2) -6/Waste -6/Factory History --------- Turn | Location | Event 7 | -11/Scrapyard | Discovered new exit (range 15) 106 | -11/Scrapyard | Entered Materials 296 | -10/Materials | Discovered new exit (range 8) 308 | -10/Materials | Build established: Mutant 523 | -10/Materials | Discovered new exit (range 15) 628 | -10/Materials | Lost 3 parts (2n1u) 703 | -10/Materials | Discovered new exit (range 7) 858 | -10/Materials | Discovered new exit (range 16) 906 | -10/Materials | Derelicts attacked the area 972 | -10/Materials | Entered another Materials area 972 | -9/Materials | Evolved 2 slots: Utility x1, Weapon x1 1066 | -9/Materials | Identified exit to Mines 1066 | -9/Materials | Identified exit to Storage 1648 | -9/Materials | Entered Storage 1998 | -9/Storage | Used back door to open Recycling access 1998 | -9/Storage | Discovered new exit (range 5) 2122 | -9/Storage | Build established: Scavenger-Tank 2168 | -9/Storage | Repaired Med. Armor Plating 2787 | -9/Storage | Build established: Tank 3028 | -9/Storage | Identified exit to Garrison 3028 | -9/Storage | Entered Garrison 3052 | -9/Garrison | Triggered checkpoint 3287 | -9/Garrison | Triggered checkpoint 3367 | -9/Garrison | Triggered checkpoint 3411 | -9/Garrison | Triggered checkpoint 3462 | -9/Garrison | Discovered new exit (range 9) 3487 | -9/Garrison | Discovered new exit (range 41) 3487 | -9/Garrison | Discovered new exit (range 65) 3487 | -9/Garrison | Discovered new exit (range 7) 3816 | -9/Garrison | Entered Materials 3816 | -8/Materials | Accompanied by 3 allies 3816 | -8/Materials | Evolved 2 slots: Propulsion x2 4123 | -8/Materials | Discovered new exit (range 15) 4616 | -8/Materials | First assault squad dispatched 5165 | -8/Materials | Build established: Scavenger-Tank 5462 | -8/Materials | Entered Factory 5462 | -7/Factory | Evolved 2 slots: Utility x2 5750 | -7/Factory | Build established: Scavenger-Skirmisher 6907 | -7/Factory | Discovered new exit (range 4) 6914 | -7/Factory | Identified exit to Factory 7370 | -7/Factory | Build established: Skirmisher 7455 | -7/Factory | Repaired Flak Cannon 7469 | -7/Factory | Fabricated Arm. Treads? 8004 | -7/Factory | Garrison activated, responded to threat 8492 | -7/Factory | Fabricated Arm. Treads (x2) 8559 | -7/Factory | Lost 4 parts (1n2u1w) 8735 | -7/Factory | Lost 5 parts (1p2n2w) 8926 | -7/Factory | Lost 3 parts (1p2n) 9009 | -7/Factory | Build established: Mutant 9280 | -7/Factory | Repaired Lyr. Light Armor Plating 9462 | -7/Factory | First assault squad dispatched 9525 | -7/Factory | Garrison activated, responded to threat 10054 | -7/Factory | Entered another Factory area 10054 | -6/Factory | Evolved 2 slots: Utility x2 10566 | -6/Factory | Lost 9 parts (1p4n3u1w) 11163 | -6/Factory | Identified exit to Lower Caves 11239 | -6/Factory | Lost 4 parts (1p1n1u1w) 11247 | -6/Factory | Garrison activated, responded to threat 11401 | -6/Factory | Sucked down chute 11401 | -6/Factory | Entered Waste 11416 | -6/Waste | EMP discharged 11416 | -6/Waste | System corruption reached 10% 11467 | -6/Waste | Spotted C-40 Crusher 11494 | -6/Waste | Spotted C-40 Crusher 11494 | -6/Waste | Spotted C-40 Crusher 11499 | -6/Waste | Crushed by Compactor (1 part destroyed, 1 dropped) 11502 | -6/Waste | Crushed by Compactor (1 part destroyed, 2 dropped) 11516 | -6/Waste | EMP discharged 11531 | -6/Waste | Spotted C-40 Crusher 11533 | -6/Waste | Lost 4 parts (2n2u) 11535 | -6/Waste | Spotted C-40 Crusher 11569 | -6/Waste | Spotted C-40 Crusher 11616 | -6/Waste | EMP discharged 11616 | -6/Waste | System corruption reached 30% 11635 | -6/Waste | Crushed by Compactor (1 part destroyed, 2 dropped) 11640 | -6/Waste | Crushed by Compactor (1 part destroyed, 1 dropped) 11659 | -6/Waste | Discovered new exit (range 13) 11666 | -6/Waste | Entered Factory 11671 | -6/Factory | Lost 5 parts (3n2u) 12434 | -6/Factory | Cargo convoy interrupted 13125 | -6/Factory | Core integrity fell below 50% 13611 | -6/Factory | Core integrity fell below 20% 13664 | -6/Factory | Lost 6 parts (2p1n3w) 13801 | -6/Factory | Allied Derelicts emerged from ambush trap array 14022 | -6/Factory | Destroyed by Y-54 Guardian with Flak Gun Last Messages --------------- 13995_ Stasis field depleted. 13996_ System corrupted: FCS attempts to trigger Com. Mass Driver. 13996_ System corrupted: Com. Mass Driver misfires. 14002_ ALERT: Suspicious intruders detected, dispatching Cutter reinforcements to area. 14005_ U-05 Engineer lays Concrete. 14012_ System corrupted: Magnetic Acceleration Cannon jammed. 14012_ Slug penetrates Wall. 14014_ Nuclear Reactor explodes. 14014_ System corrupted: Component data lost. 14014_ W-25 Informer destroyed. 14016_ System corrupted: Plasma Rifle failed to cycle. 14019_ Slug penetrates Wall. 14019_ U-05 Engineer builds a Wall. 14020_ R-10 Processor collects Imp. Hover Unit. 14021_ U-05 Engineer lays Concrete. Map ----- +----------------------------------------------------+ | ?????????????????????????????????????????????????? | | ?????????????????????????????????????????????????? | | ?????????????????????????????????????????????????? | | ?????????????????????????????????????????+#####??? | | ???????????????????????????????????????? ??? | | ????????????????????????????????????????? ?? | | ????????????????????????????????????????? ? | | ???????????????????????? ?????????????????? | | ???????????????????????# ???????????????????? | | ???????????????????????# ?????????????????????# | | ???????????????????????# ?????????????????????# | | ???????????????????????# ?????????????????????# | | ???????????????????????# ?????????????????????+ | | ???????????????????????#k?????????????????????# | | ???????????????????????# ?????????????????????# | | ???????????????????????# ?????????????????????# | | ?????????????????###???# ##????????????????????### | | ?????????????????? ??# "#########??????????????? | | ??????????????????? ### ### """ #??????????????? | | ???????????????????? ; u # """ #??????????????? | | ?????????????????????; % #? """ ???????????????? | | ?????????????????????+ #? ???????????????? | | ??????????????t??????#% Y !??? ???############## | | ?????????????????????# ??? ???# g | | ??????????????????????# u#####+##### ############ | | ??????????????????????# @ g^#??????????? | | ??????????????????????# #??????????? | | ??????????????????????# ^ #??????????? | | ?????????????????????# u #??????????? | | ??????????????????? #?????????? | | ???????????????? #?????????? | | ?????????????? ! #?????????? | | ????????????? #?????????? | | ???????????? """ """ #?????????? | | ??????????? """ """ %=#?????????? | | ????????? R """ """ #?????????? | | ??????????###### # % +?????????? | | ???????????????# # """ """ """ #?????????? | | ???????????????# ?## """ """ """ #?????????? | | ??????????????? ??# """ """ """ #?????????? | | ?????????????? ???# ? ? ?????????? | | ????????????? "???# ?? ? ? ##????????? | | ???????????? ????# ?? ? ?##+###?????????? | | ????????????????????### ??###?## ????????????????? | | ??????????????????????#????????? ????????????????? | | ???????"""?????????????????????? ????????????????? | | ???????"""?????????????????????? ????????????????? | | ???????"""???????????????????????????????????????? | | ?????????????????????????????????????????????????? | | ?????????????????????????????????????????????????? | +----------------------------------------------------+ Best States ------------- Heat Dissipation 102 Energy Generation 21 Energy Capacity 310 Matter Stores 300 Matter Capacity 300 Sight Range 22 Robot Scan Range 16 Terrain Scan Density 10 Cloak Strength 2 Base Temperature (-) 100 Armor Coverage 375 Evasion (%) 55 Core Analysis 6 Recoil Reduction 4 Matter Filtering 30 Offensive Hacking 10 Defensive Hacking 24 Item Schematics ----------------- Huge Storage Unit | -10/Materials | Hacked Plasma Cutter | -9/Storage | Hacked Arm. Treads | -8/Materials | Hacked Cryofiber Web | -6/Factory | Scanalyzed Robot Schematics ------------------ None Fabricated ------------ Arm. Treads | x2 | -7/Factory Arm. Treads | x2 | -7/Factory Repaired ---------- Med. Armor Plating | 6% | -9/Storage Flak Cannon | 18% | -7/Factory Lyr. Light Armor Plating | 1% | -7/Factory Alien Tech Used ----------------- None Achievements -------------- None Challenges ------------ None Game ------ Seed ChipRagnarokSuite Manual? 0 Play Time 03:22:36 Cumulative 139.3 hours Start 2025.09.03 @ 20:25:53 End 2025.09.04 @ 11:49:50 Sessions 5 Manual Loads 0 Difficulty Rogue Special Mode None Game No. 51 Rogue 51 Adventurer 0 Explorer 0 Win Type - Total 2 Types 2/0/0/0/0/0/0/0/0/0 Lore% 52 Gallery% 55 Achievement% 48 Wizard Run 0 Options --------- Layout 1 ASCII 0 Keyboard 0 Movement Mouse Keybinds 0 Fullscreen 1 Font 32/Smallcaps Map View 50x35 Zoom Use 0% Tactical HUD 1 Map Filters NONE Filters NONE Steam 1 RUN: 6028b029-389b-44fa-b954-23e7fb3c06e2